fUST/lending_fUST_20250831
["ID","MTS","AMOUNT","RATE_DAILY","PERIOD"]
[382342649,1756582183300,-457.08840607,0.00019173,2]
[382342650,1756582186071,-504.87141545,0.00019173,2]
[382342651,1756582187512,-304.32739485,0.00019173,2]
[382342652,1756582192166,-175.54632062,0.00019168,2]
[382342653,1756582193879,-232.12252053,0.00019168,2]
[382342654,1756582195527,-302.57643837,0.00019168,2]
[382342688,1756582232461,-300.0,0.00019167,2]
[382342689,1756582232471,-503.71731649,0.00019168,2]
[382342690,1756582232483,-314.5842607,0.00019168,2]
[382342692,1756582238329,-283.50436366,0.00019078,2]
[382342693,1756582238339,-216.49563634,0.00019168,2]
[382342877,1756582240369,-9616.51652346,0.00019168,2]
[382342878,1756582240378,-160.0,0.00019168,2]
[382342880,1756582240387,-425.65682239,0.00019177,2]
[382342882,1756582240396,-216.25802849,0.00019177,2]
[382342884,1756582240405,-232.73020027,0.00019177,2]
[382342886,1756582240414,-160.0,0.00019177,2]
[382342888,1756582240424,-529.89603018,0.00019177,2]
[382342890,1756582240433,-845.75060209,0.00019177,2]
[382342892,1756582240443,-417.15472785,0.00019177,2]
[382342894,1756582240452,-160.0,0.00019177,2]
[382342896,1756582240461,-217.34977173,0.00019177,2]
[382342898,1756582240471,-124.77350571,0.00019177,2]
[382342900,1756582240482,-442.59865078,0.00019177,2]
[382342902,1756582240492,-167.10441727,0.00019177,2]
[382342904,1756582240502,-227.80088986,0.00019177,2]
[382342906,1756582240515,-236.92981298,0.00019177,2]
[382342908,1756582240526,-154.85053624,0.00019177,2]
[382342910,1756582240536,-227.80088986,0.00019177,2]
[382342912,1756582240546,-315.54675689,0.00019178,2]
[382342914,1756582240555,-151.0,0.00019178,2]
[382342916,1756582240565,-480.0,0.00019178,2]
[382342918,1756582240574,-151.0,0.00019178,2]
[382342920,1756582240584,-653.07,0.00019178,2]
[382342922,1756582240595,-489.50949177,0.00019178,2]
[382342924,1756582240605,-2102.88,0.00019178,2]
[382342926,1756582240614,-480.0,0.00019178,2]
[382342928,1756582240623,-715.92,0.00019178,2]
[382342930,1756582240632,-480.0,0.00019178,2]
[382342932,1756582240641,-1284.33,0.00019178,2]
[382342934,1756582240651,-480.0,0.00019178,2]
[382342936,1756582240660,-1705.08,0.00019178,2]
[382342938,1756582240670,-151.0,0.00019178,2]
[382342940,1756582240680,-151.0,0.00019178,2]
[382342942,1756582240689,-558.19,0.00019178,2]
[382342944,1756582240699,-480.0,0.00019178,2]
[382342946,1756582240708,-151.0,0.00019178,2]
[382342947,1756582240717,-151.0,0.00019178,2]
[382342949,1756582240727,-480.0,0.00019178,2]
[382342951,1756582240737,-743.67,0.00019178,2]
[382342953,1756582240746,-480.0,0.00019178,2]
[382342955,1756582240755,-480.0,0.00019178,2]
[382342957,1756582240768,-480.0,0.00019178,2]
[382342959,1756582240778,-480.0,0.00019178,2]
[382342961,1756582240788,-480.0,0.00019178,2]
[382342963,1756582240797,-667.6,0.00019178,2]
[382342965,1756582240806,-534.56,0.00019178,2]
[382342967,1756582240815,-284.9619604,0.00019178,2]
[382342970,1756582240833,-195.0380396,0.00019178,2]
[382342972,1756582240842,-480.0,0.00019178,2]
[382342974,1756582240852,-602.7,0.00019178,2]
[382342976,1756582240861,-363.89564432,0.00019178,2]
[382342977,1756582240870,-1707.68,0.00019178,2]
[382342978,1756582240879,-480.0,0.00019178,2]
[382342979,1756582240888,-1196.45,0.00019178,2]
[382342980,1756582240897,-480.0,0.00019178,2]
[382342981,1756582240906,-480.0,0.00019178,2]
[382342982,1756582240916,-506.44,0.00019178,2]
[382342983,1756582240925,-480.0,0.00019178,2]
[382342984,1756582240934,-1366.48,0.00019178,2]
[382342985,1756582240943,-480.0,0.00019178,2]
[382342986,1756582240952,-480.0,0.00019178,2]
[382342987,1756582240961,-480.0,0.00019178,2]
[382342988,1756582240970,-480.0,0.00019178,2]
[382342989,1756582240979,-22.55595096,0.00019178,2]
[382343047,1756582242107,-0.01500661,0.00019178,2]
[382343074,1756582243723,-559.27647158,0.00019178,2]
[382343081,1756582271634,436.799042,0.00013699,2]
[382343082,1756582343459,153.544637,0.00024,30]
[382343083,1756582355943,153.264851,0.00024,30]
[382343094,1756582714047,1781.378709,0.00018173,2]
[382343095,1756583041124,5260.5378326,0.00018159,2]
[382343097,1756583198946,414.959089,0.00013699,2]
[382343099,1756583230113,-302.54622906,0.000189,2]
[382343100,1756583230133,-248.06631822,0.000189,2]
[382343101,1756583230154,-300.0,0.00018999,2]
[382343102,1756583230174,-105480.59024408,0.00019,3]
[382343103,1756583230195,-425.65682239,0.00019,3]
[382343104,1756583230216,-529.89603018,0.00019,3]
[382343105,1756583230237,-500.0,0.00019077,2]
[382343106,1756583230257,-500.0,0.00019077,2]
[382343107,1756583230278,-500.0,0.00019077,2]
[382343108,1756583230303,-500.0,0.00019077,2]
[382343109,1756583230324,-500.0,0.00019077,2]
[382343110,1756583230347,-500.0,0.00019077,2]
[382343111,1756583230370,-500.0,0.00019077,2]
[382343112,1756583230391,-500.0,0.00019077,2]
[382343113,1756583230413,-500.0,0.00019077,2]
[382343114,1756583230434,-500.0,0.00019077,2]
[382343115,1756583230455,-500.0,0.00019077,2]
[382343116,1756583230477,-573.96839506,0.00019077,2]
[382343117,1756583230499,-500.0,0.00019077,2]
[382343118,1756583230523,-163.32635185,0.00019078,2]
[382343119,1756583230544,-4188.92054683,0.00019078,2]
[382343120,1756583230566,-302.54622906,0.00019089,2]
[382343121,1756583230590,-11361.55901651,0.00019143,2]
[382343122,1756583230611,-425.65682239,0.00019165,2]
[382343123,1756583230631,-216.25802849,0.00019165,2]
[382343124,1756583230651,-160.0,0.00019165,2]
[382343125,1756583230672,-529.89603018,0.00019165,2]
[382343126,1756583230693,-845.75060209,0.00019165,2]
[382343127,1756583230714,-417.15472785,0.00019165,2]
[382343128,1756583230734,-232.73020027,0.00019165,2]
[382343129,1756583230755,-160.0,0.00019165,2]
[382343130,1756583230778,-217.34977173,0.00019165,2]
[382343131,1756583230799,-187.78006525,0.00019166,2]
[382343132,1756583230819,-737.95,0.00019168,3]
[382343133,1756583230838,-368.98,0.00019168,3]
[382343134,1756583230857,-184.49,0.00019168,3]
[382343135,1756583230875,-553.47,0.00019168,3]
[382343136,1756583230895,-500.0,0.00019173,2]
[382343137,1756583230914,-500.0,0.00019173,2]
[382343138,1756583230935,-505.55404403,0.00019173,2]
[382343139,1756583230953,-500.0,0.00019173,2]
[382343140,1756583230972,-500.0,0.00019173,2]
[382343141,1756583230990,-500.0,0.00019173,2]
[382343142,1756583231009,-500.0,0.00019173,2]
[382343143,1756583231027,-500.0,0.00019173,2]
[382343144,1756583231046,-500.0,0.00019173,2]
[382343145,1756583231066,-500.0,0.00019173,2]
[382343146,1756583231086,-500.0,0.00019173,2]
[382343147,1756583231106,-500.0,0.00019173,2]
[382343148,1756583231124,-513.90345774,0.00019173,2]
[382343149,1756583231144,-500.0,0.00019173,2]
[382343150,1756583231163,-500.0,0.00019173,2]
[382343151,1756583231183,-500.0,0.00019173,2]
[382343152,1756583231201,-402.97632556,0.00019173,2]
[382343153,1756583231220,-500.0,0.00019173,2]
[382343154,1756583231239,-500.0,0.00019173,2]
[382343155,1756583231259,-500.0,0.00019173,2]
[382343156,1756583231279,-160.108,0.00019173,2]
[382343157,1756583231303,-1383.0,0.00019177,2]
[382343158,1756583231322,-500.0,0.00019177,2]
[382343159,1756583231342,-180.89077933,0.00019177,2]
[382343160,1756583231360,-182.5702157,0.00019178,2]
[382343161,1756583231381,-299.26459127,0.00019178,2]
[382343162,1756583231399,-480.0,0.00019178,2]
[382343163,1756583231419,-480.0,0.00019178,2]
[382343164,1756583231438,-480.0,0.00019178,2]
[382343165,1756583231459,-480.0,0.00019178,2]
[382343166,1756583231479,-480.0,0.00019178,2]
[382343167,1756583231500,-525.30864367,0.00019178,2]
[382343168,1756583231521,-480.0,0.00019178,2]
[382343169,1756583231541,-480.0,0.00019178,2]
[382343170,1756583231561,-673.14,0.00019178,2]
[382343171,1756583231580,-480.0,0.00019178,2]
[382343172,1756583231599,-480.0,0.00019178,2]
[382343173,1756583231619,-480.0,0.00019178,2]
[382343174,1756583231638,-278.54133583,0.00019178,2]
[382343175,1756583231659,-480.0,0.00019178,2]
[382343176,1756583231679,-658.94,0.00019178,2]
[382343177,1756583231698,-529.61,0.00019178,2]
[382343178,1756583231718,-480.0,0.00019178,2]
[382343179,1756583231737,-480.0,0.00019178,2]
[382343180,1756583231756,-599.41,0.00019178,2]
[382343181,1756583231777,-480.0,0.00019178,2]
[382343182,1756583231798,-480.0,0.00019178,2]
[382343183,1756583231819,-480.0,0.00019178,2]
[382343184,1756583231844,-480.0,0.00019178,2]
[382343185,1756583231866,-480.0,0.00019178,2]
[382343186,1756583231888,-480.0,0.00019178,2]
[382343187,1756583231911,-534.93,0.00019178,2]
[382343188,1756583231932,-480.0,0.00019178,2]
[382343189,1756583231953,-480.0,0.00019178,2]
[382343190,1756583231973,-480.0,0.00019178,2]
[382343191,1756583231995,-480.0,0.00019178,2]
[382343192,1756583232028,-480.0,0.00019178,2]
[382343193,1756583232049,-155.03326374,0.00019178,2]
[382343194,1756583232225,-480.0,0.00019178,2]
[382343195,1756583232247,-1037.75,0.00019178,2]
[382343196,1756583232267,-480.0,0.00019178,2]
[382343197,1756583232291,-480.0,0.00019178,2]
[382343198,1756583232311,-480.0,0.00019178,2]
[382343199,1756583232332,-480.0,0.00019178,2]
[382343200,1756583232353,-485.33,0.00019178,2]
[382343201,1756583232378,-480.0,0.00019178,2]
[382343202,1756583232397,-480.0,0.00019178,2]
[382343203,1756583232418,-480.0,0.00019178,2]
[382343204,1756583232442,-480.0,0.00019178,2]
[382343205,1756583232463,-480.0,0.00019178,2]
[382343206,1756583232484,-480.0,0.00019178,2]
[382343207,1756583232504,-480.0,0.00019178,2]
[382343208,1756583232525,-1196.7,0.00019178,2]
[382343209,1756583232545,-480.0,0.00019178,2]
[382343210,1756583232566,-480.0,0.00019178,2]
[382343211,1756583232586,-581.69,0.00019178,2]
[382343212,1756583232607,-480.0,0.00019178,2]
[382343213,1756583232627,-819.21,0.00019178,2]
[382343214,1756583232651,-480.0,0.00019178,2]
[382343215,1756583232671,-480.0,0.00019178,2]
[382343216,1756583232692,-480.0,0.00019178,2]
[382343217,1756583232714,-480.0,0.00019178,2]
[382343218,1756583232734,-480.0,0.00019178,2]
[382343219,1756583232754,-480.0,0.00019178,2]
[382343220,1756583232774,-512.29,0.00019178,2]
[382343221,1756583232794,-480.0,0.00019178,2]
[382343222,1756583232813,-480.0,0.00019178,2]
[382343223,1756583232834,-480.0,0.00019178,2]
[382343224,1756583232853,-480.0,0.00019178,2]
[382343225,1756583232873,-480.0,0.00019178,2]
[382343226,1756583232893,-480.0,0.00019178,2]
[382343227,1756583232913,-484.46,0.00019178,2]
[382343228,1756583232933,-480.0,0.00019178,2]
[382343229,1756583232953,-480.0,0.00019178,2]
[382343230,1756583232973,-516.79,0.00019178,2]
[382343231,1756583232994,-1138.1,0.00019178,2]
[382343232,1756583233016,-882.7,0.00019178,2]
[382343233,1756583233036,-480.0,0.00019178,2]
[382343234,1756583233056,-480.0,0.00019178,2]
[382343235,1756583233077,-480.0,0.00019178,2]
[382343236,1756583233097,-480.0,0.00019178,2]
[382343237,1756583233118,-480.0,0.00019178,2]
[382343238,1756583233138,-825.24,0.00019178,2]
[382343239,1756583233158,-480.0,0.00019178,2]
[382343240,1756583233178,-480.0,0.00019178,2]
[382343241,1756583233199,-480.0,0.00019178,2]
[382343242,1756583233219,-480.0,0.00019178,2]
[382343243,1756583233239,-620.83,0.00019178,2]
[382343244,1756583233260,-480.0,0.00019178,2]
[382343245,1756583233280,-480.0,0.00019178,2]
[382343246,1756583233310,-361.03779872,0.00019178,2]
[382343247,1756583233335,-486.23168103,0.00019178,2]
[382343248,1756583233377,-1016.89,0.00019178,2]
[382343249,1756583233413,-480.0,0.00019178,2]
[382343250,1756583233433,-480.0,0.00019178,2]
[382343251,1756583233455,-480.0,0.00019178,2]
[382343252,1756583233478,-556.44,0.00019178,2]
[382343253,1756583233517,-836.49,0.00019178,2]
[382343254,1756583233546,-480.0,0.00019178,2]
[382343255,1756583233597,-480.0,0.00019178,2]
[382343256,1756583233626,-1054.29,0.00019178,2]
[382343257,1756583233656,-480.0,0.00019178,2]
[382343258,1756583233688,-246.53548562,0.00019178,2]
[382343259,1756583233716,-681.94,0.00019178,2]
[382343260,1756583233747,-480.0,0.00019178,2]
[382343261,1756583233775,-480.0,0.00019178,2]
[382343262,1756583233807,-918.99,0.00019178,2]
[382343263,1756583233838,-1383.34,0.00019178,2]
[382343264,1756583233866,-1000.0,0.00019178,2]
[382343265,1756583233897,-476.68101872,0.00019178,2]
[382343299,1756583432637,-217.05802846,0.00019078,2]
[382343301,1756583432647,-640.27814585,0.00019078,2]
[382343303,1756583432658,-386.37513093,0.00019078,2]
[382343480,1756583440256,-1765.9604211,0.00019078,2]
[382343483,1756583440266,-1000.0,0.00019078,2]
[382343486,1756583440276,-187.78006525,0.00019166,2]
[382343489,1756583440285,-11361.55901651,0.00019171,2]
[382343490,1756583440294,-217.34977173,0.00019172,2]
[382343491,1756583440304,-425.65682239,0.00019172,2]
[382343492,1756583440313,-216.25802849,0.00019172,2]
[382343493,1756583440322,-160.0,0.00019172,2]
[382343494,1756583440332,-232.73020027,0.00019172,2]
[382343495,1756583440341,-845.75060209,0.00019172,2]
[382343496,1756583440350,-160.0,0.00019172,2]
[382343497,1756583440360,-300.0,0.00019172,2]
[382343498,1756583440369,-500.0,0.00019173,2]
[382343499,1756583440378,-500.0,0.00019173,2]
[382343500,1756583440387,-500.0,0.00019173,2]
[382343501,1756583440396,-500.0,0.00019173,2]
[382343502,1756583440406,-500.0,0.00019173,2]
[382343503,1756583440418,-500.0,0.00019173,2]
[382343504,1756583440427,-500.0,0.00019173,2]
[382343505,1756583440437,-500.0,0.00019173,2]
[382343506,1756583440446,-500.0,0.00019173,2]
[382343507,1756583440456,-500.0,0.00019173,2]
[382343508,1756583440465,-500.0,0.00019173,2]
[382343509,1756583440474,-335.58608022,0.00019173,2]
[382343510,1756583440866,-22.75687059,0.00019173,2]
[382343511,1756583440876,-500.0,0.00019177,2]
[382343512,1756583440885,-500.0,0.00019177,2]
[382343513,1756583440894,-151.0,0.00019177,2]
[382343514,1756583440904,-500.0,0.00019177,2]
[382343515,1756583440913,-500.0,0.00019177,2]
[382343516,1756583440922,-151.0,0.00019177,2]
[382343517,1756583440931,-500.0,0.00019177,2]
[382343518,1756583440943,-187.1947061,0.00019177,2]
[382343519,1756583440955,-229.5130465,0.00019177,2]
[382343520,1756583440964,-275.30938339,0.00019177,2]
[382343521,1756583440974,-151.0,0.00019177,2]
[382343522,1756583440983,-151.0,0.00019177,2]
[382343523,1756583440992,-110.53116074,0.00019177,2]
[382344116,1756583446700,-324.65567513,0.00018985,2]
[382344118,1756583446712,-322.34432487,0.00018985,2]
[382344134,1756583446858,-306.75963642,0.00018985,2]
[382344136,1756583446868,-40.46883926,0.00019177,2]
[382344138,1756583446877,-151.0,0.00019177,2]
[382344140,1756583446887,-500.0,0.00019177,2]
[382344142,1756583446896,-230.44093278,0.00019177,2]
[382344144,1756583446906,-500.0,0.00019177,2]
[382344147,1756583446917,-182.5702157,0.00019178,2]
[382344149,1756583446927,-480.0,0.00019178,2]
[382344151,1756583446936,-480.0,0.00019178,2]
[382344153,1756583446946,-480.0,0.00019178,2]
[382344155,1756583446955,-625.86,0.00019178,2]
[382344157,1756583446964,-542.98,0.00019178,2]
[382344159,1756583446973,-480.0,0.00019178,2]
[382344161,1756583446983,-480.0,0.00019178,2]
[382344163,1756583446992,-1636.53,0.00019178,2]
[382344165,1756583447001,-480.0,0.00019178,2]
[382344167,1756583447011,-480.0,0.00019178,2]
[382344169,1756583447022,-480.0,0.00019178,2]
[382344171,1756583447032,-577.59,0.00019178,2]
[382344172,1756583447042,-480.0,0.00019178,2]
[382344175,1756583447051,-480.0,0.00019178,2]
[382344177,1756583447061,-664.59,0.00019178,2]
[382344179,1756583447070,-480.0,0.00019178,2]
[382344181,1756583447080,-480.0,0.00019178,2]
[382344183,1756583447089,-480.0,0.00019178,2]
[382344185,1756583447098,-480.0,0.00019178,2]
[382344187,1756583447107,-480.0,0.00019178,2]
[382344189,1756583447117,-249.64307821,0.00019178,2]
[382344191,1756583447127,-480.0,0.00019178,2]
[382344193,1756583447135,-480.0,0.00019178,2]
[382344195,1756583447145,-1345.48,0.00019178,2]
[382344196,1756583447156,-151.0,0.00019178,2]
[382344199,1756583447167,-405.85019274,0.00019178,2]
[382344201,1756583447179,-151.0,0.00019178,2]
[382344203,1756583447189,-577.72,0.00019178,2]
[382344205,1756583447198,-151.0,0.00019178,2]
[382344207,1756583447207,-480.0,0.00019178,2]
[382344209,1756583447216,-480.0,0.00019178,2]
[382344211,1756583447225,-151.0,0.00019178,2]
[382344212,1756583447234,-480.0,0.00019178,2]
[382344215,1756583447244,-151.0,0.00019178,2]
[382344217,1756583447254,-480.0,0.00019178,2]
[382344218,1756583447263,-505.26,0.00019178,2]
[382344220,1756583447273,-151.0,0.00019178,2]
[382344223,1756583447283,-151.0,0.00019178,2]
[382344225,1756583447292,-500.0,0.00019178,2]
[382344227,1756583447302,-152.36524089,0.00019178,2]
[382344229,1756583447312,-480.0,0.00019178,2]
[382344231,1756583447321,-667.61,0.00019178,2]
[382344233,1756583447331,-480.0,0.00019178,2]
[382344235,1756583447340,-480.0,0.00019178,2]
[382344237,1756583447349,-418.37553712,0.00019178,2]
[382344238,1756583447358,-556.8,0.00019178,2]
[382344240,1756583447368,-627.49,0.00019178,2]
[382344242,1756583447378,-480.0,0.00019178,2]
[382344244,1756583447388,-480.0,0.00019178,2]
[382344246,1756583447397,-487.27,0.00019178,2]
[382344248,1756583447407,-678.98,0.00019178,2]
[382344250,1756583447416,-480.0,0.00019178,2]
[382344252,1756583447426,-480.0,0.00019178,2]
[382344254,1756583447435,-480.0,0.00019178,2]
[382344256,1756583447444,-332.1196412,0.00019178,2]
[382344258,1756583447454,-500.0,0.00019178,2]
[382344260,1756583447464,-500.0,0.00019178,2]
[382344262,1756583447473,-500.0,0.00019178,2]
[382344264,1756583447483,-480.0,0.00019178,2]
[382344266,1756583447492,-274.08408607,0.00019178,2]
[382344268,1756583447502,-770.14,0.00019178,2]
[382344270,1756583447512,-480.0,0.00019178,2]
[382344272,1756583447521,-480.0,0.00019178,2]
[382344274,1756583447530,-480.0,0.00019178,2]
[382344276,1756583447539,-480.0,0.00019178,2]
[382344277,1756583447548,-500.0,0.00019178,2]
[382344278,1756583447558,-614.31,0.00019178,2]
[382344279,1756583447567,-480.0,0.00019178,2]
[382344280,1756583447575,-480.0,0.00019178,2]
[382344281,1756583447584,-480.0,0.00019178,2]
[382344282,1756583447594,-480.0,0.00019178,2]
[382344283,1756583447603,-480.0,0.00019178,2]
[382344284,1756583447612,-480.0,0.00019178,2]
[382344285,1756583447621,-480.0,0.00019178,2]
[382344287,1756583447631,-480.0,0.00019178,2]
[382344288,1756583447640,-317.64664227,0.00019178,2]
[382344289,1756583447649,-480.0,0.00019178,2]
[382344290,1756583447658,-480.0,0.00019178,2]
[382344291,1756583447667,-346.34804989,0.00019178,2]
[382344293,1756583447677,-786.94,0.00019178,2]
[382344295,1756583447686,-1261.7,0.00019178,2]
[382344297,1756583447695,-548.97,0.00019178,2]
[382344299,1756583447704,-480.0,0.00019178,2]
[382344301,1756583447714,-480.0,0.00019178,2]
[382344303,1756583447723,-151.0,0.00019178,2]
[382344305,1756583447732,-480.0,0.00019178,2]
[382344307,1756583447741,-151.0,0.00019178,2]
[382344309,1756583447750,-151.0,0.00019178,2]
[382344311,1756583447759,-480.0,0.00019178,2]
[382344313,1756583447768,-151.0,0.00019178,2]
[382344315,1756583447778,-245.02185393,0.00019178,2]
[382344317,1756583447787,-291.929321,0.00019178,2]
[382344319,1756583447796,-480.0,0.00019178,2]
[382344321,1756583447805,-480.0,0.00019178,2]
[382344323,1756583447815,-480.0,0.00019178,2]
[382344325,1756583447824,-633.23,0.00019178,2]
[382344327,1756583447834,-480.0,0.00019178,2]
[382344329,1756583447844,-1558.38,0.00019178,2]
[382344331,1756583447853,-258.72497932,0.00019178,2]
[382344333,1756583447863,-1262.02,0.00019178,2]
[382344335,1756583447872,-480.0,0.00019178,2]
[382344337,1756583447881,-480.0,0.00019178,2]
[382344339,1756583447891,-480.0,0.00019178,2]
[382344341,1756583447900,-501.89,0.00019178,2]
[382344343,1756583447909,-480.0,0.00019178,2]
[382344344,1756583447919,-697.55,0.00019178,2]
[382344345,1756583447929,-763.3,0.00019178,2]
[382344346,1756583447938,-297.242015,0.00019178,2]
[382344347,1756583447948,-480.0,0.00019178,2]
[382344348,1756583447958,-480.0,0.00019178,2]
[382344349,1756583447967,-480.0,0.00019178,2]
[382344350,1756583447977,-480.0,0.00019178,2]
[382344351,1756583447986,-491.21,0.00019178,2]
[382344352,1756583447995,-480.0,0.00019178,2]
[382344353,1756583448004,-480.0,0.00019178,2]
[382344354,1756583448014,-480.0,0.00019178,2]
[382344355,1756583448023,-480.0,0.00019178,2]
[382344356,1756583448033,-480.0,0.00019178,2]
[382344357,1756583448042,-480.0,0.00019178,2]
[382344358,1756583448051,-480.0,0.00019178,2]
[382344359,1756583448061,-480.48,0.00019178,2]
[382344360,1756583448070,-519.6,0.00019178,2]
[382344361,1756583448079,-480.0,0.00019178,2]
[382344362,1756583448089,-827.19,0.00019178,2]
[382344363,1756583448099,-480.0,0.00019178,2]
[382344364,1756583448108,-480.0,0.00019178,2]
[382344365,1756583448118,-480.0,0.00019178,2]
[382344367,1756583448128,-547.05,0.00019178,2]
[382344369,1756583448137,-637.17,0.00019178,2]
[382344371,1756583448148,-491.91,0.00019178,2]
[382344373,1756583448158,-480.0,0.00019178,2]
[382344375,1756583448168,-480.0,0.00019178,2]
[382344377,1756583448177,-573.13,0.00019178,2]
[382344379,1756583448186,-480.0,0.00019178,2]
[382344381,1756583448197,-480.0,0.00019178,2]
[382344383,1756583448206,-1249.86,0.00019178,2]
[382344385,1756583448215,-480.0,0.00019178,2]
[382344387,1756583448225,-480.0,0.00019178,2]
[382344389,1756583448239,-480.0,0.00019178,2]
[382344391,1756583448249,-480.0,0.00019178,2]
[382344393,1756583448259,-480.0,0.00019178,2]
[382344395,1756583448269,-27925.00628813,0.00019178,2]
[382349872,1756583544251,153.544637,0.00024,30]
[382349906,1756583651201,582.48883744,0.000188,2]
[382349911,1756583724888,154.606678,0.00024,30]
[382349912,1756583803396,-189.92577485,0.00019072,2]
[382349913,1756583803425,-1861.74246526,0.00019078,2]
[382349914,1756583803454,-425.65682239,0.00019165,2]
[382349915,1756583803482,-300.0,0.00019166,2]
[382349916,1756583803512,-187.78006525,0.00019166,2]
[382349917,1756583803543,-216.25802849,0.00019167,2]
[382349918,1756583803570,-160.0,0.00019167,2]
[382349919,1756583803597,-845.75060209,0.00019167,2]
[382349920,1756583803624,-232.73020027,0.00019167,2]
[382349921,1756583803651,-300.0,0.00019167,2]
[382349922,1756583803679,-260.3220828,0.00019167,2]
[382349923,1756583803692,-39.6779172,0.00019167,2]
[382349924,1756583803702,-150.24785765,0.00019167,2]
[382349925,1756583803718,-312.0,0.00019048,2]
[382349926,1756583803728,-681.75214235,0.00019167,2]
[382349927,1756583803737,-867.99032291,0.00019168,2]
[382349928,1756583803755,-425.65682239,0.00019168,2]
[382349929,1756583803774,-300.0,0.00019168,2]
[382349930,1756583803805,-232.09812879,0.00019168,2]
[382349931,1756583803821,-187.78006525,0.00019168,2]
[382349932,1756583803832,-216.25802849,0.00019168,2]
[382349933,1756583803843,-160.0,0.00019168,2]
[382349934,1756583803858,-845.75060209,0.00019168,2]
[382349935,1756583803909,-232.73020027,0.00019168,2]
[382349936,1756583803961,-2106.71515368,0.00019168,2]
[382349937,1756583803974,-300.0,0.00019168,2]
[382349938,1756583803985,-300.0,0.00019168,2]
[382349939,1756583804034,-4813.43030736,0.00019168,2]
[382349940,1756583804047,-373.14938528,0.00019168,2]
[382349941,1756583804056,-430.47,0.00019168,3]
[382349942,1756583804066,-215.23,0.00019168,3]
[382349943,1756583804075,-645.74,0.00019168,3]
[382349944,1756583804084,-160.0,0.00019168,2]
[382349945,1756583804094,-217.34977173,0.00019168,2]
[382349946,1756583804103,-7725.9727142,0.00019169,2]
[382349947,1756583804142,-7893.29484632,0.00019169,2]
[382349948,1756583804157,-5186.57969264,0.00019169,2]
[382349949,1756583804237,-10000.01,0.00019169,2]
[382349950,1756583804263,-10000.01,0.00019169,2]
[382349951,1756583804283,-9194.13274684,0.00019169,2]
[382349952,1756583804292,-805.87725316,0.00019172,2]
[382349953,1756583804341,-394.12274684,0.00019172,2]
[382349954,1756583804369,-500.0,0.00019173,2]
[382349955,1756583804397,-500.0,0.00019173,2]
[382349956,1756583804425,-500.0,0.00019173,2]
[382349957,1756583804453,-500.0,0.00019173,2]
[382349958,1756583804481,-500.0,0.00019173,2]
[382349959,1756583804509,-500.0,0.00019173,2]
[382349960,1756583804542,-500.0,0.00019173,2]
[382349961,1756583804570,-500.0,0.00019173,2]
[382349962,1756583804598,-500.0,0.00019173,2]
[382349963,1756583804626,-394.12274684,0.00019173,2]
[382349964,1756583804647,-105.87725316,0.00019173,2]
[382349965,1756583804657,-394.12274684,0.00019173,2]
[382349966,1756583804668,-105.87725316,0.00019173,2]